[Event "EYCC Open-U10 2019"]
[Site "Bratislava"]
[Date "2019.08.03"]
[Round "2.2"]
[White "Panda, Barnabas"]
[Black "Finek, Vaclav"]
[Result "0-1"]
[ECO "D82"]
[WhiteElo "1625"]
[BlackElo "2043"]
[Annotator "NA"]
[PlyCount "44"]
[EventDate "2019.08.02"]
[EventType "swiss"]
[EventCountry "SVK"]
[SourceTitle "playchess.com"]
[Source "ChessBase"]
[SourceQuality "1"]
[TimeControl "40/5400+30:1800+30"]

1. d4 Nf6 2. c4 g6 3. Nc3 d5 4. Bf4 Bg7 5. e3 c5 6. dxc5 Qa5 7. Qa4+ Qxa4 8. Nxa4 Bd7 9. Nc3 Ne4 10. Nxd5 Na6 11. Bd3 Nexc5 12. Bc2 e6 13. Nc3 Nb4 14. O-O-O Bxc3 15. bxc3 Nxc2 16. Rxd7 Nxd7 17. Kxc2 O-O 18. Nf3 Rac8 19. Rd1 Rfd8 20. h3 Nc5 21. Bg5 Rxd1 22. Kxd1 Ne4 0-1

[Event "EYCC Open-U10 2019"]
[Site "Bratislava"]
[Date "2019.08.03"]
[Round "2.3"]
[White "Vetokhin, Savva"]
[Black "Gut, Lionel"]
[Result "1-0"]
[ECO "B40"]
[WhiteElo "1954"]
[BlackElo "1583"]
[Annotator "NA"]
[PlyCount "81"]
[EventDate "2019.08.02"]
[EventType "swiss"]
[EventCountry "SVK"]
[SourceTitle "playchess.com"]
[Source "ChessBase"]
[SourceQuality "1"]
[TimeControl "40/5400+30:1800+30"]

1. e4 {[%emt 0:00:00]} c5 {[%emt 0:00:04]} 2. Nf3 {[%emt 0:00:00]} e6 {[%emt 0:00:08]} 3. c4 {[%emt 0:00:13]} d6 {[%emt 0:01:12]} 4. Nc3 {[%emt 0:00:35]} Nf6 {[%emt 0:00:43]} 5. d4 {[%emt 0:00:06]} cxd4 {[%emt 0:00:09]} 6. Nxd4 {[%emt 0:00:04]} a6 {[%emt 0:01:34]} 7. Be2 {[%emt 0:00:12]} Be7 {[%emt 0:00:05]} 8. O-O {[%emt 0:00:08]} O-O {[%emt 0:00:05]} 9. Be3 {[%emt 0:00:10]} b6 {[%emt 0:00:42]} 10. Qd2 {[%emt 0:00:16]} Bb7 {[%emt 0:00:27]} 11. f3 {[%emt 0:00:05]} Nbd7 {[%emt 0:00:24]} 12. Rfc1 {[%emt 0:00:50]} Rc8 {[%emt 0:00:17]} 13. a4 {[%emt 0:00:31]} Ne5 {[%emt 0:01:18]} 14. b3 {[%emt 0:00:37]} Re8 {[%emt 0:02:06]} 15. Nc2 {[%emt 0:06:46]} Bf8 {[%emt 0:00:39]} 16. Rd1 {[%emt 0:06:14]} Ng6 {[%emt 0:09:47]} 17. Qe1 {[%emt 0:07:04]} Qc7 {[%emt 0:04:31]} 18. Rac1 {[%emt 0:16:05]} Ba8 {[%emt 0:06:22]} 19. Nb4 {[%emt 0:07:04]} Bb7 {[%emt 0:10:07]} 20. Nd3 {[%emt 0:01:11]} Ba8 {[%emt 0:07:28]} 21. Rc2 {[%emt 0:12:05]} d5 {[%emt 0:03:06]} 22. exd5 {[%emt 0:02:19]} exd5 {[%emt 0:00:05]} 23. Qf2 {[%emt 0:00:12]} dxc4 {[%emt 0:01:07]} 24. bxc4 {[%emt 0:00:17]} Re6 {[%emt 0:02:24]} 25. Rb1 {[%emt 0:01:21]} Bc5 {[%emt 0:02:34]} 26. Nxc5 {[%emt 0:01:12]} bxc5 {[%emt 0:01:00]} 27. Nd5 {[%emt 0:00:13]} Nxd5 {[%emt 0:02:06]} 28. cxd5 {[%emt 0:01:10]} Bxd5 {[%emt 0:00:03]} 29. Rxc5 {[%emt 0:00:14]} Qd7 {[%emt 0:00:21]} 30. Rxc8+ {[%emt 0:01:20]} Qxc8 {[%emt 0:00:06]} 31. Ba7 {[%emt 0:00:19]} Qc2 {[%emt 0:00:46]} 32. Rb8+ {[%emt 0:01:27]} Nf8 {[%emt 0:00:05]} 33. Qc5 {[%emt 0:00:13]} Qxc5+ {[%emt 0:02:19]} 34. Bxc5 {[%emt 0:00:06]} h6 {[%emt 0:00:04]} 35. Rxf8+ {[%emt 0:00:04]} Kh7 36. Bd3+ g6 {[%emt 0:00:37]} 37. Rxf7+ {[%emt 0:00:04]} Kg8 {[%emt 0:00:06]} 38. Rf8+ {[%emt 0:00:06]} Kg7 {[%emt 0:00:08]} 39. Rd8 {[%emt 0:00:13]} Bc6 {[%emt 0:00:40]} 40. Bd4+ {[%emt 0:00:00]} Kf7 {[%emt 0:00:00]} 41. Bc4 {[%emt 0:00:14]} 1-0

[Event "EYCC Open-U10 2019"]
[Site "Bratislava"]
[Date "2019.08.03"]
[Round "2.4"]
[White "Bazilius, Augustinas"]
[Black "Royal, Shreyas"]
[Result "1-0"]
[ECO "E69"]
[WhiteElo "1666"]
[BlackElo "1996"]
[Annotator "NA"]
[PlyCount "113"]
[EventDate "2019.08.02"]
[EventType "swiss"]
[EventCountry "SVK"]
[SourceTitle "playchess.com"]
[Source "ChessBase"]
[SourceQuality "1"]
[TimeControl "40/5400+30:1800+30"]

1. d4 {[%emt 0:00:00]} Nf6 {[%emt 0:00:05]} 2. c4 {[%emt 0:00:00]} g6 {[%emt 0:01:05]} 3. Nf3 {[%emt 0:00:00]} Bg7 {[%emt 0:00:07]} 4. g3 {[%emt 0:00:03]} d6 {[%emt 0:01:43]} 5. Nc3 {[%emt 0:00:24]} O-O {[%emt 0:02:00]} 6. Bg2 {[%emt 0:00:08]} Nbd7 {[%emt 0:01:23]} 7. O-O {[%emt 0:00:15]} e5 {[%emt 0:00:14]} 8. e4 {[%emt 0:00:18]} c6 {[%emt 0:00:22]} 9. h3 {[%emt 0:00:06]} Qa5 {[%emt 0:01:48]} 10. Be3 {[%emt 0:01:37]} exd4 {[%emt 0:03:17]} 11. Nxd4 {[%emt 0:03:15]} Nb6 {[%emt 0:00:06]} 12. Qe2 {[%emt 0:06:07]} Qh5 {[%emt 0:02:05]} 13. Qxh5 {[%emt 0:03:02]} Nxh5 {[%emt 0:00:06]} 14. b3 {[%emt 0:02:18]} f5 {[%emt 0:03:57]} 15. exf5 {[%emt 0:02:05]} gxf5 {[%emt 0:01:24]} 16. Nde2 {[%emt 0:04:13]} f4 {[%emt 0:00:40]} 17. gxf4 {[%emt 0:02:51]} d5 {[%emt 0:10:09]} 18. cxd5 {[%emt 0:14:55]} Nxd5 {[%emt 0:02:17]} 19. Nxd5 {[%emt 0:02:47]} cxd5 {[%emt 0:00:20]} 20. Rad1 {[%emt 0:00:57]} d4 {[%emt 0:04:08]} 21. Bxd4 {[%emt 0:03:33]} Nxf4 {[%emt 0:00:22]} 22. Nxf4 {[%emt 0:00:41]} Rxf4 {[%emt 0:00:05]} 23. Bxg7 {[%emt 0:00:24]} Kxg7 {[%emt 0:00:04]} 24. Rd8 {[%emt 0:00:19]} Rf8 {[%emt 0:00:10]} 25. Rfd1 {[%emt 0:00:49]} Bf5 {[%emt 0:00:51]} 26. Rxa8 {[%emt 0:00:41]} Rxa8 {[%emt 0:00:04]} 27. Bxb7 {[%emt 0:02:33]} Re8 {[%emt 0:00:13]} 28. Kg2 {[%emt 0:03:56]} Re2 {[%emt 0:00:15]} 29. a4 {[%emt 0:03:07]} Rb2 {[%emt 0:02:23]} 30. Bd5 {[%emt 0:02:07]} Bc2 {[%emt 0:00:27]} 31. Rd4 {[%emt 0:00:07]} a5 {[%emt 0:00:08]} 32. Rg4+ {[%emt 0:01:16]} Kf6 {[%emt 0:00:12]} 33. Rg3 {[%emt 0:01:53]} Ke5 {[%emt 0:00:20]} 34. Bc4 {[%emt 0:01:45]} Be4+ {[%emt 0:00:08]} 35. Kf1 {[%emt 0:01:43]} Kf4 {[%emt 0:02:00]} 36. Rg4+ {[%emt 0:01:07]} Kf5 {[%emt 0:00:06]} 37. Rh4 {[%emt 0:05:07]} Ke5 {[%emt 0:00:57]} 38. Rh5+ {[%emt 0:03:58]} Kd4 {[%emt 0:00:25]} 39. Kg1 {[%emt 0:00:26]} Rb1+ {[%emt 0:01:29]} 40. Kh2 {[%emt 0:00:00]} Rh1+ {[%emt 0:00:00]} 41. Kg3 {[%emt 0:00:32]} Rg1+ {[%emt 0:00:20]} 42. Kf4 {[%emt 0:01:02]} Rg2 {[%emt 0:00:24]} 43. Rxa5 {[%emt 0:01:45]} Rxf2+ {[%emt 0:00:06]} 44. Kg5 {[%emt 0:01:02]} Rg2+ {[%emt 0:00:43]} 45. Kf6 {[%emt 0:03:42]} Rg6+ {[%emt 0:00:08]} 46. Ke7 {[%emt 0:01:28]} Rg3 {[%emt 0:00:47]} 47. Be6 {[%emt 0:01:07]} Rg7+ {[%emt 0:01:01]} 48. Kd6 {[%emt 0:00:25]} Rb7 {[%emt 0:00:05]} 49. Rb5 {[%emt 0:00:40]} Ra7 {[%emt 0:00:07]} 50. Rb4+ {[%emt 0:04:01]} Ke3 {[%emt 0:00:10]} 51. Ke5 {[%emt 0:01:43]} Bg2 {[%emt 0:00:24]} 52. Rg4 {[%emt 0:02:47]} Ra5+ {[%emt 0:00:51]} 53. Kf6 {[%emt 0:00:32]} Be4 {[%emt 0:00:37]} 54. Rg5 {[%emt 0:01:10]} Ra6 {[%emt 0:00:02]} 55. Rc5 {[%emt 0:01:33]} Kd4 {[%emt 0:00:34]} 56. Rb5 {[%emt 0:01:42]} Bd3 {[%emt 0:01:09]} 57. Rd5+ {Kxd5} 1-0

[Event "EYCC Open-U10 2019"]
[Site "Bratislava"]
[Date "2019.08.03"]
[Round "2.5"]
[White "Samunenkov, Ihor"]
[Black "Villa Tornero, Alex"]
[Result "1-0"]
[ECO "A45"]
[WhiteElo "1985"]
[BlackElo "1657"]
[Annotator "NA"]
[PlyCount "91"]
[EventDate "2019.08.02"]
[EventType "swiss"]
[EventCountry "SVK"]
[SourceTitle "playchess.com"]
[Source "ChessBase"]
[SourceQuality "1"]
[TimeControl "40/5400+30:1800+30"]

1. d4 {[%emt 0:00:00]} Nf6 {[%emt 0:02:39]} 2. g3 {[%emt 0:00:04]} d5 {[%emt 0:00:48]} 3. Nf3 {[%emt 0:00:13]} c5 {[%emt 0:01:52]} 4. Bg2 {[%emt 0:00:10]} cxd4 {[%emt 0:01:58]} 5. O-O {[%emt 0:00:10]} h6 {[%emt 0:02:45]} 6. a3 {[%emt 0:05:02]} a6 {[%emt 0:05:22]} 7. Nxd4 {[%emt 0:03:49]} e5 {[%emt 0:02:21]} 8. Nf3 {[%emt 0:01:23]} Nc6 {[%emt 0:02:32]} 9. b4 {[%emt 0:00:55]} Be6 {[%emt 0:01:41]} 10. Bb2 {[%emt 0:01:44]} Qc7 {[%emt 0:03:12]} 11. Nbd2 {[%emt 0:01:43]} Rc8 {[%emt 0:02:44]} 12. Rc1 {[%emt 0:04:49]} b5 {[%emt 0:01:43]} 13. Nb3 {[%emt 0:06:28]} Bd6 {[%emt 0:03:26]} 14. Ne1 {[%emt 0:05:13]} O-O {[%emt 0:02:35]} 15. Nd3 {[%emt 0:02:02]} Qa7 {[%emt 0:10:18]} 16. Ndc5 {[%emt 0:04:51]} a5 {[%emt 0:02:46]} 17. Nxe6 {[%emt 0:16:38]} fxe6 {[%emt 0:00:08]} 18. bxa5 {[%emt 0:00:16]} Nxa5 {[%emt 0:08:18]} 19. Nxa5 {[%emt 0:02:22]} Qxa5 {[%emt 0:00:56]} 20. Qd3 {[%emt 0:00:35]} Qb6 {[%emt 0:02:25]} 21. e3 {[%emt 0:02:03]} Rc4 {[%emt 0:03:03]} 22. Bh3 {[%emt 0:02:12]} Bb8 {[%emt 0:01:16]} 23. Qg6 {[%emt 0:01:33]} Rc6 {[%emt 0:01:53]} 24. Qd3 {[%emt 0:06:02]} Ne4 {[%emt 0:01:05]} 25. Kg2 {[%emt 0:01:46]} Rc4 {[%emt 0:04:10]} 26. f4 {[%emt 0:01:29]} Qc6 {[%emt 0:03:47]} 27. f5 {[%emt 0:04:46]} d4 {[%emt 0:03:21]} 28. Kg1 {[%emt 0:04:23]} dxe3 {[%emt 0:01:33]} 29. fxe6 {[%emt 0:02:06]} Nf2 {[%emt 0:00:13]} 30. Bg2 {[%emt 0:00:34]} Nxd3 {[%emt 0:01:11]} 31. Bxc6 {[%emt 0:00:11]} Nxc1 {[%emt 0:00:38]} 32. e7 {[%emt 0:00:48]} Ne2+ {[%emt 0:04:07]} 33. Kg2 {[%emt 0:01:20]} Nf4+ {[%emt 0:03:15]} 34. Rxf4 {[%emt 0:01:04]} Rcxf4 {[%emt 0:07:28]} 35. gxf4 {[%emt 0:00:23]} Rc8 {[%emt 0:01:05]} 36. e8=Q+ {[%emt 0:00:36]} Rxe8 {[%emt 0:00:05]} 37. Bxe8 {[%emt 0:00:09]} exf4 {[%emt 0:00:57]} 38. Bxb5 {[%emt 0:00:12]} Kf7 {[%emt 0:01:20]} 39. Kf3 {[%emt 0:00:12]} g5 {[%emt 0:00:24]} 40. h3 {[%emt 0:00:00]} Bc7 {[%emt 0:00:00]} 41. a4 {[%emt 0:01:01]} Bd8 {[%emt 0:01:01]} 42. Ke4 {[%emt 0:00:27]} Bb6 {[%emt 0:00:15]} 43. Bc3 {[%emt 0:00:34]} h5 {[%emt 0:00:52]} 44. Be2 {[%emt 0:00:15]} h4 {[%emt 0:00:12]} 45. a5 {[%emt 0:00:13]} Ba7 {[%emt 0:00:33]} 46. Bd4 {[%emt 0:00:11]} 1-0

[Event "EYCC Open-U10 2019"]
[Site "Bratislava"]
[Date "2019.08.03"]
[Round "2.6"]
[White "Ribstein, Orel"]
[Black "Usov, Aleksandr E."]
[Result "0-1"]
[ECO "D02"]
[WhiteElo "1667"]
[BlackElo "1809"]
[Annotator "NA"]
[PlyCount "130"]
[EventDate "2019.08.02"]
[EventType "swiss"]
[EventCountry "SVK"]
[SourceTitle "playchess.com"]
[Source "ChessBase"]
[SourceQuality "1"]
[TimeControl "40/5400+30:1800+30"]

1. d4 {[%emt 0:00:00]} d5 {[%emt 0:00:00]} 2. Nf3 {[%emt 0:00:00]} Nf6 {[%emt 0:00:48]} 3. c4 {[%emt 0:00:09]} c6 {[%emt 0:00:50]} 4. g3 {[%emt 0:00:37]} Bf5 {[%emt 0:01:00]} 5. Nc3 {[%emt 0:01:00]} e6 {[%emt 0:00:11]} 6. Nh4 {[%emt 0:01:10]} Be4 {[%emt 0:02:24]} 7. f3 {[%emt 0:00:17]} Bg6 {[%emt 0:01:07]} 8. Qb3 {[%emt 0:00:14]} Qb6 {[%emt 0:01:24]} 9. Nxg6 {[%emt 0:01:59]} hxg6 {[%emt 0:00:40]} 10. c5 {[%emt 0:00:14]} Qxb3 {[%emt 0:01:34]} 11. axb3 {[%emt 0:01:52]} Nbd7 {[%emt 0:02:03]} 12. b4 {[%emt 0:00:32]} e5 {[%emt 0:05:04]} 13. e3 {[%emt 0:00:49]} Be7 {[%emt 0:05:04]} 14. b5 {[%emt 0:06:04]} Nh5 {[%emt 0:04:29]} 15. Kf2 {[%emt 0:04:51]} f5 {[%emt 0:02:15]} 16. Bd3 {[%emt 0:11:44]} e4 {[%emt 0:13:42]} 17. fxe4 {[%emt 0:02:23]} fxe4 {[%emt 0:05:48]} 18. Be2 {[%emt 0:06:06]} O-O+ {[%emt 0:02:56]} 19. Kg2 {[%emt 0:00:20]} Nhf6 {[%emt 0:04:32]} 20. Bd2 {[%emt 0:01:27]} Rfb8 {[%emt 0:12:18]} 21. Ra2 {[%emt 0:08:49]} a6 {[%emt 0:18:23]} 22. bxa6 {[%emt 0:11:54]} bxa6 {[%emt 0:00:10]} 23. Rha1 {[%emt 0:01:14]} a5 {[%emt 0:00:31]} 24. Nd1 {[%emt 0:00:31]} Bd8 {[%emt 0:05:09]} 25. Bxa5 {[%emt 0:04:25]} Bxa5 {[%emt 0:00:15]} 26. Rxa5 {[%emt 0:00:17]} Rxa5 {[%emt 0:00:06]} 27. Rxa5 {[%emt 0:00:14]} Rb4 {[%emt 0:00:34]} 28. Kf2 {[%emt 0:00:55]} g5 {[%emt 0:00:56]} 29. h3 {[%emt 0:00:31]} Kf7 {[%emt 0:00:15]} 30. Ke1 {[%emt 0:00:57]} g6 {[%emt 0:03:16]} 31. g4 {[%emt 0:00:52]} Ne8 {[%emt 0:01:37]} 32. Kd2 {[%emt 0:00:19]} Ke7 {[%emt 0:00:52]} 33. Kc3 {[%emt 0:00:06]} Rb7 {[%emt 0:00:18]} 34. b4 {[%emt 0:00:13]} Nc7 {[%emt 0:00:37]} 35. Kb3 {[%emt 0:01:13]} Rb8 {[%emt 0:00:42]} 36. Ra7 {[%emt 0:01:21]} Kd8 {[%emt 0:01:33]} 37. Nc3 {[%emt 0:01:07]} Nf6 {[%emt 0:00:57]} 38. Ka4 {[%emt 0:03:11]} Nfe8 {[%emt 0:02:16]} 39. Ra5 {[%emt 0:05:28]} Kc8 {[%emt 0:01:53]} 40. b5 {[%emt 0:00:00]} cxb5+ {[%emt 0:00:00]} 41. Bxb5 {[%emt 0:03:18]} Nf6 {[%emt 0:04:07]} 42. Ba6+ {[%emt 0:04:57]} Kd7 {[%emt 0:00:41]} 43. Nb5 {[%emt 0:36:26]} Nfe8 {[%emt 0:01:36]} 44. Nc3 {[%emt 0:07:01]} Rb2 {[%emt 0:02:41]} 45. Be2 {[%emt 0:01:03]} Nf6 {[%emt 0:01:19]} 46. Ka3 {[%emt 0:00:55]} Rb8 {[%emt 0:00:15]} 47. Ra7 {[%emt 0:00:32]} Kd8 {[%emt 0:01:12]} 48. Ka4 {[%emt 0:01:32]} Rb2 {[%emt 0:00:45]} 49. Ka3 {[%emt 0:00:09]} Rxe2 {[%emt 0:00:47]} 50. Rxc7 {[%emt 0:00:16]} Rxe3 {[%emt 0:00:18]} 51. Rf7 {[%emt 0:00:40]} Rxc3+ {[%emt 0:00:05]} 52. Kb2 {[%emt 0:00:08]} Rf3 {[%emt 0:00:07]} 53. Kc2 {[%emt 0:00:30]} Nxg4 {[%emt 0:00:20]} 54. Rg7 {[%emt 0:00:29]} Ne3+ {[%emt 0:00:17]} 55. Kd2 {[%emt 0:00:01]} Nc4+ {[%emt 0:00:21]} 56. Ke2 {[%emt 0:00:01]} Rf6 {[%emt 0:00:18]} 57. Rg8+ {[%emt 0:00:14]} Kc7 {[%emt 0:00:06]} 58. Rg7+ {[%emt 0:00:11]} Kc6 {[%emt 0:00:05]} 59. Ra7 {[%emt 0:00:15]} Rf3 {[%emt 0:00:55]} 60. Ra6+ {[%emt 0:00:17]} Kb5 {[%emt 0:00:06]} 61. Rxg6 {[%emt 0:00:13]} Rxh3 {[%emt 0:00:42]} 62. Rxg5 {[%emt 0:00:10]} Rh2+ {[%emt 0:01:51]} 63. Ke1 {[%emt 0:00:20]} Nd2 {[%emt 0:03:12]} 64. Rg8 {[%emt 0:01:47]} Nf3+ {[%emt 0:00:16]} 65. Kf1 {[%emt 0:00:21]} Nxd4 {[%emt 0:00:11]} 0-1

[Event "EYCC Open-U10 2019"]
[Site "Bratislava"]
[Date "2019.08.03"]
[Round "2.7"]
[White "Giang, Tran Nam"]
[Black "Dyachuk, Artem"]
[Result "1-0"]
[ECO "B33"]
[WhiteElo "1931"]
[BlackElo "1538"]
[Annotator "NA"]
[PlyCount "93"]
[EventDate "2019.08.02"]
[EventType "swiss"]
[EventCountry "SVK"]
[SourceTitle "playchess.com"]
[Source "ChessBase"]
[SourceQuality "1"]
[TimeControl "40/5400+30:1800+30"]

1. e4 {[%emt 0:00:00]} c5 {[%emt 0:00:00]} 2. Nf3 {[%emt 0:00:00]} e6 {[%emt 0:00:00]} 3. d4 {[%emt 0:00:00]} cxd4 {[%emt 0:00:00]} 4. Nxd4 {[%emt 0:00:00]} Nc6 {[%emt 0:00:00]} 5. Nb5 {[%emt 0:00:04]} Nf6 {[%emt 0:00:19]} 6. N1c3 {[%emt 0:01:39]} d6 {[%emt 0:00:29]} 7. Bf4 {[%emt 0:00:18]} e5 {[%emt 0:00:34]} 8. Bg5 {[%emt 0:00:09]} a6 {[%emt 0:01:20]} 9. Na3 {[%emt 0:00:06]} Be6 {[%emt 0:01:26]} 10. Nc4 {[%emt 0:05:55]} Nd4 {[%emt 0:03:57]} 11. Bxf6 {[%emt 0:06:26]} gxf6 {[%emt 0:00:57]} 12. Ne3 {[%emt 0:01:43]} Bh6 {[%emt 0:08:38]} 13. Ncd5 {[%emt 0:04:41]} f5 {[%emt 0:07:01]} 14. exf5 {[%emt 0:07:23]} Bxd5 {[%emt 0:03:58]} 15. Nxd5 {[%emt 0:01:05]} Qa5+ {[%emt 0:01:10]} 16. Nc3 {[%emt 0:01:58]} Rg8 {[%emt 0:09:22]} 17. g3 {[%emt 0:06:50]} Rc8 {[%emt 0:04:07]} 18. Bd3 {[%emt 0:11:10]} Rxc3 {[%emt 0:02:19]} 19. bxc3 {[%emt 0:00:19]} Qd5 {[%emt 0:00:38]} 20. f3 {[%emt 0:15:24]} Nxf3+ {[%emt 0:04:45]} 21. Kf2 {[%emt 0:00:36]} Ng5 {[%emt 0:07:43]} 22. Qh5 {[%emt 0:05:15]} e4 {[%emt 0:05:01]} 23. Rhe1 {[%emt 0:06:41]} Kd7 {[%emt 0:06:40]} 24. Be2 {[%emt 0:04:17]} Bf8 {[%emt 0:11:37]} 25. Rad1 {[%emt 0:02:13]} Qxf5+ {[%emt 0:04:19]} 26. Kg2 {[%emt 0:00:28]} Qg6 {[%emt 0:06:40]} 27. Qxg6 {[%emt 0:01:02]} hxg6 {[%emt 0:00:08]} 28. Bc4 {[%emt 0:00:44]} b5 {[%emt 0:02:27]} 29. Bd5 {[%emt 0:00:13]} Bg7 {[%emt 0:00:39]} 30. h4 {[%emt 0:00:33]} Ne6 {[%emt 0:01:09]} 31. Rxe4 {[%emt 0:00:40]} Bxc3 {[%emt 0:00:58]} 32. Rf1 {[%emt 0:00:48]} Rg7 {[%emt 0:00:23]} 33. Rxf7+ {[%emt 0:00:07]} Rxf7 {[%emt 0:00:16]} 34. Bxe6+ {[%emt 0:00:03]} Ke7 {[%emt 0:00:09]} 35. Bxf7+ {[%emt 0:00:07]} Kxf7 {[%emt 0:00:13]} 36. Kf3 {[%emt 0:00:38]} d5 {[%emt 0:00:42]} 37. Re3 {[%emt 0:00:28]} b4 {[%emt 0:00:43]} 38. Rd3 {[%emt 0:00:34]} Ke6 {[%emt 0:01:39]} 39. Kg4 {[%emt 0:01:09]} Bf6 {[%emt 0:02:33]} 40. h5 {[%emt 0:00:00]} gxh5+ {[%emt 0:00:00]} 41. Kxh5 {[%emt 0:00:18]} d4 {[%emt 0:02:38]} 42. g4 {[%emt 0:00:08]} Kf7 {[%emt 0:00:32]} 43. g5 {[%emt 0:00:15]} Bg7 {[%emt 0:00:31]} 44. Rf3+ {[%emt 0:00:10]} Kg8 {[%emt 0:00:11]} 45. Kg6 {[%emt 0:00:23]} a5 {[%emt 0:00:46]} 46. Rf7 {[%emt 0:00:06]} Bf8 {[%emt 0:01:32]} 47. Rxf8+ {[%emt 0:00:33]} 1-0

[Event "EYCC Open-U10 2019"]
[Site "Bratislava"]
[Date "2019.08.03"]
[Round "2.8"]
[White "Grabs, Peter"]
[Black "Azadaliyev, Jahandar"]
[Result "1/2-1/2"]
[ECO "B17"]
[WhiteElo "1638"]
[BlackElo "1905"]
[Annotator "NA"]
[PlyCount "90"]
[EventDate "2019.08.02"]
[EventType "swiss"]
[EventCountry "SVK"]
[SourceTitle "playchess.com"]
[Source "ChessBase"]
[SourceQuality "1"]
[TimeControl "40/5400+30:1800+30"]

1. e4 {[%emt 0:00:48]} c6 {[%emt 0:00:00]} 2. d4 {[%emt 0:00:07]} d5 {[%emt 0:00:00]} 3. Nd2 {[%emt 0:00:34]} dxe4 {[%emt 0:00:42]} 4. Nxe4 {[%emt 0:00:00]} Nd7 {[%emt 0:00:34]} 5. Ng5 {[%emt 0:00:05]} Ngf6 {[%emt 0:00:59]} 6. Bd3 {[%emt 0:00:13]} e6 {[%emt 0:01:04]} 7. N1f3 {[%emt 0:00:09]} Be7 {[%emt 0:00:54]} 8. Qe2 {[%emt 0:13:51]} O-O {[%emt 0:03:40]} 9. Bd2 {[%emt 0:04:48]} h6 {[%emt 0:06:39]} 10. Nxe6 {[%emt 0:13:27]} fxe6 {[%emt 0:01:22]} 11. Qxe6+ {[%emt 0:00:18]} Kh8 {[%emt 0:00:09]} 12. Nh4 {[%emt 0:00:27]} g5 {[%emt 0:00:53]} 13. Ng6+ {[%emt 0:00:39]} Kg7 {[%emt 0:01:21]} 14. Nxf8 {[%emt 0:19:46]} Nxf8 {[%emt 0:01:08]} 15. Qe2 {[%emt 0:04:36]} Ne6 {[%emt 0:06:37]} 16. c3 {[%emt 0:02:41]} c5 {[%emt 0:04:04]} 17. dxc5 {[%emt 0:04:08]} Nxc5 {[%emt 0:01:12]} 18. Bc2 {[%emt 0:01:32]} Qf8 {[%emt 0:20:15]} 19. O-O-O {[%emt 0:07:41]} Ne6 {[%emt 0:12:15]} 20. g3 {[%emt 0:08:10]} Bd7 {[%emt 0:04:18]} 21. f4 {[%emt 0:02:01]} g4 {[%emt 0:01:26]} 22. Rde1 {[%emt 0:07:46]} Re8 {[%emt 0:01:26]} 23. Be3 {[%emt 0:03:49]} Bc5 {[%emt 0:01:46]} 24. Qf2 {[%emt 0:00:41]} Bxe3+ {[%emt 0:00:43]} 25. Rxe3 {[%emt 0:00:05]} Qc5 {[%emt 0:01:56]} 26. Re2 {[%emt 0:00:48]} Qxf2 {[%emt 0:01:07]} 27. Rxf2 {[%emt 0:00:01]} Nc5 {[%emt 0:00:22]} 28. Rd1 {[%emt 0:00:44]} Bc6 {[%emt 0:00:13]} 29. Rff1 {[%emt 0:02:15]} Bd5 {[%emt 0:05:13]} 30. Kb1 {[%emt 0:00:10]} h5 {[%emt 0:05:40]} 31. Rfe1 {[%emt 0:00:16]} Rxe1 {[%emt 0:00:43]} 32. Rxe1 {[%emt 0:00:05]} Nce4 {[%emt 0:00:29]} 33. Bxe4 {[%emt 0:00:47]} Bxe4+ {[%emt 0:00:17]} 34. Kc1 {[%emt 0:00:05]} Kg6 {[%emt 0:00:49]} 35. Kd2 {[%emt 0:00:25]} Kf5 {[%emt 0:00:11]} 36. Ke3 {[%emt 0:00:01]} Bf3 {[%emt 0:01:14]} 37. Kd4 {[%emt 0:00:21]} Ne4 {[%emt 0:00:08]} 38. a3 {[%emt 0:00:31]} Bg2 {[%emt 0:05:43]} 39. Rg1 {[%emt 0:01:18]} Bf3 {[%emt 0:02:52]} 40. Re1 {[%emt 0:00:00]} b6 {[%emt 0:00:00]} 41. b4 {[%emt 0:03:48]} b5 {[%emt 0:01:48]} 42. c4 {[%emt 0:07:23]} bxc4 43. Kxc4 {[%emt 0:00:30]} a6 {[%emt 0:02:51]} 44. Kd4 {[%emt 0:00:22]} Bg2 {[%emt 0:01:11]} 45. a4 Nd2 1/2-1/2

[Event "EYCC Open-U10 2019"]
[Site "Bratislava"]
[Date "2019.08.03"]
[Round "2.9"]
[White "Povshednyi, Ivan"]
[Black "Rudnev, Andrei"]
[Result "1-0"]
[ECO "B18"]
[WhiteElo "1872"]
[BlackElo "1607"]
[Annotator "NA"]
[PlyCount "67"]
[EventDate "2019.08.02"]
[EventType "swiss"]
[EventCountry "SVK"]
[SourceTitle "playchess.com"]
[Source "ChessBase"]
[SourceQuality "1"]
[TimeControl "40/5400+30:1800+30"]

1. e4 c6 2. d4 d5 3. Nd2 dxe4 4. Nxe4 Bf5 5. Ng3 Bg6 6. Nf3 Nf6 7. Be2 e6 8. O-O Qc7 9. c4 Nbd7 10. Re1 h6 11. Bf1 O-O-O 12. Be3 Bh7 13. Qa4 a6 14. b4 Nb8 15. Rec1 g5 16. Qb3 Bg7 17. b5 Nfd7 18. Nh5 Bf8 19. bxc6 bxc6 20. d5 c5 21. dxe6 fxe6 22. Rd1 Bg6 23. Ng3 Bg7 24. Rac1 g4 25. Nh4 Bh7 26. Bd3 Bxd3 27. Rxd3 Ne5 28. Rxd8+ Rxd8 29. Qc2 Nbd7 30. Ng6 Nf8 31. Nxe5 Qxe5 32. Qa4 Kb7 33. Rb1+ Ka7 34. Qa5 {[%emt 1:30:08]} 1-0

[Event "EYCC Open-U10 2019"]
[Site "Bratislava"]
[Date "2019.08.03"]
[Round "2.10"]
[White "Chon, Jeremy"]
[Black "Zverev, Lev"]
[Result "0-1"]
[ECO "D05"]
[WhiteElo "1594"]
[BlackElo "1849"]
[Annotator "NA"]
[PlyCount "68"]
[EventDate "2019.08.02"]
[EventType "swiss"]
[EventCountry "SVK"]
[SourceTitle "playchess.com"]
[Source "ChessBase"]
[SourceQuality "1"]
[TimeControl "40/5400+30:1800+30"]

1. d4 {[%emt 0:00:00]} d5 {[%emt 0:00:00]} 2. Nf3 {[%emt 0:00:00]} e6 {[%emt 0:00:00]} 3. e3 {[%emt 0:00:00]} Nf6 {[%emt 0:00:16]} 4. Bd3 {[%emt 0:00:11]} Bd6 {[%emt 0:00:10]} 5. Nbd2 {[%emt 0:00:13]} O-O {[%emt 0:00:17]} 6. O-O {[%emt 0:00:17]} c5 {[%emt 0:00:05]} 7. c3 {[%emt 0:00:07]} Qc7 {[%emt 0:00:08]} 8. dxc5 {[%emt 0:01:20]} Bxc5 {[%emt 0:00:00]} 9. e4 {[%emt 0:00:08]} dxe4 {[%emt 0:01:08]} 10. Nxe4 {[%emt 0:00:17]} Nxe4 {[%emt 0:00:14]} 11. Bxe4 {[%emt 0:00:18]} f5 {[%emt 0:00:07]} 12. Bc2 {[%emt 0:00:35]} Bd6 {[%emt 0:02:38]} 13. Nd4 {[%emt 0:05:25]} Bxh2+ {[%emt 0:02:09]} 14. Kh1 {[%emt 0:00:16]} Be5 {[%emt 0:00:08]} 15. Nf3 {[%emt 0:07:17]} Bf6 {[%emt 0:00:15]} 16. Bb3 {[%emt 0:01:42]} Kh8 {[%emt 0:00:16]} 17. Bg5 {[%emt 0:01:48]} Nc6 {[%emt 0:01:16]} 18. Bxf6 {[%emt 0:00:23]} Rxf6 {[%emt 0:00:06]} 19. Re1 {[%emt 0:02:00]} Bd7 {[%emt 0:00:55]} 20. Ba4 {[%emt 0:05:47]} Rd8 {[%emt 0:01:08]} 21. Kg1 {[%emt 0:12:08]} Be8 {[%emt 0:01:39]} 22. Qc2 {[%emt 0:02:52]} Bh5 {[%emt 0:01:25]} 23. Qb3 {[%emt 0:05:00]} Bxf3 {[%emt 0:00:28]} 24. gxf3 {[%emt 0:00:45]} Rg6+ {[%emt 0:00:05]} 25. Kf1 {[%emt 0:00:13]} Ne5 {[%emt 0:00:58]} 26. c4 {[%emt 0:01:24]} Nxc4 {[%emt 0:01:58]} 27. Rac1 {[%emt 0:00:49]} Nd2+ {[%emt 0:00:13]} 28. Ke2 {[%emt 0:00:47]} Qxc1 {[%emt 0:01:06]} 29. Rxc1 {[%emt 0:00:23]} Nxb3 {[%emt 0:00:07]} 30. Bxb3 {[%emt 0:00:07]} Rf6 {[%emt 0:00:40]} 31. Rc7 {[%emt 0:02:13]} Rb8 {[%emt 0:00:15]} 32. Re7 {[%emt 0:00:23]} h5 {[%emt 0:00:10]} 33. Rxe6 {[%emt 0:01:08]} Rxe6+ {[%emt 0:00:51]} 34. Bxe6 {[%emt 0:00:26]} Re8 {[%emt 0:00:05]} 0-1